{"text_format":"3","workbook":"xlsx","n_sheets":3,"sheets":["Õppuriloend","Klassinimekiri","Õppuri üksikasjad"],"not_rendered":{"images":2,"defined_names":8},"read":"whole","date_system":"1900"}

{"sheet":"Õppuriloend","index":0,"n_rows":8,"n_cols":13,"rows_kept":8,"merged":[[1,2,2,3],[1,4,1,11],[2,4,2,11],[6,12,8,16]]}
[]
[null,null,"Õppuriloend",null,"AVA KLASSINIMEKIRI"]
[{"$nulls":4},"AVA ÕPPURI ÜKSIKASJAD"]
[null,null,"ÕPPURI NIMI","MEILIAADRESS","KODUTELEFON","MOBIILTELEFON","SÜNNIKUUPÄEV","KONTAKTISIKUD HÄDAOLUKORRAS","HÄDAABI TELEFONINUMBER","ARST","ARSTI TELEFONINUMBER","  "]
[null,null,"Nimi 1","Meiliaadress","Kodutelefon","Mobiiltelefon","Kuupäev","Kontaktisik 1","Hädaabi telefoninumber","Arst 1","Arsti telefoninumber"]
[null,null,"Nimi 2","Meiliaadress","Kodutelefon","Mobiiltelefon","Kuupäev","Kontaktisik 2","Hädaabi telefoninumber","Arst 2","Arsti telefoninumber"]
[null,null,"Nimi 3","Meiliaadress","Kodutelefon","Mobiiltelefon","Kuupäev","Kontaktisik 3","Hädaabi telefoninumber","Arst 3","Arsti telefoninumber",null,"Näpunäide: õppurite lisamiseks vajutage tabeli viimases lahtris tabeldusklahvi (Tab)."]
[null,null,"Nimi 4","Meiliaadress","Kodutelefon","Mobiiltelefon","Kuupäev","Kontaktisik 4","Hädaabi telefoninumber","Arst 4","Arsti telefoninumber"]

{"sheet":"Klassinimekiri","index":1,"n_rows":12,"n_cols":7,"rows_kept":12,"merged":[[1,2,2,2],[1,3,2,3],[1,4,1,6],[2,4,2,6]]}
[]
[null,null,"Klassinimekiri","Graafilise disaini instituut","AVA ÕPPURILOEND"]
[{"$nulls":4},"AVA ÕPPURI ÜKSIKASJAD"]
[null,null,"KURSUS","Kursuse nimi","ALGUSKUUPÄEV","Kuupäev"]
[null,null,"ÕPPEJÕUD","Õppejõud 1","LÕPPKUUPÄEV","Kuupäev"]
[null,null,"REGISTREERUNUD ÕPPURID",{"$f":"COUNTA(Õppurinimekiri[ÕPPURI NIMI])","v":4}]
[]
[null,null,"ÕPPURI NIMI","MEILIAADRESS","KODUTELEFON","MOBIILTELEFON","  "]
[null,null,"Nimi 1",{"$f":"IFERROR(VLOOKUP(Õppurinimekiri[[#This Row],[ÕPPURI NIMI]],Õppurid[],2),\"\")","v":"Meiliaadress"},{"$f":"IFERROR(VLOOKUP(Õppurinimekiri[[#This Row],[ÕPPURI NIMI]],Õppurid[],3),\"\")","v":"Kodutelefon"},{"$f":"IFERROR(VLOOKUP(Õppurinimekiri[[#This Row],[ÕPPURI NIMI]],Õppurid[],4),\"\")","v":"Mobiiltelefon"}]
[null,null,"Nimi 2",{"$f":"IFERROR(VLOOKUP(Õppurinimekiri[[#This Row],[ÕPPURI NIMI]],Õppurid[],2),\"\")","v":"Meiliaadress"},{"$f":"IFERROR(VLOOKUP(Õppurinimekiri[[#This Row],[ÕPPURI NIMI]],Õppurid[],3),\"\")","v":"Kodutelefon"},{"$f":"IFERROR(VLOOKUP(Õppurinimekiri[[#This Row],[ÕPPURI NIMI]],Õppurid[],4),\"\")","v":"Mobiiltelefon"}]
[null,null,"Nimi 3",{"$f":"IFERROR(VLOOKUP(Õppurinimekiri[[#This Row],[ÕPPURI NIMI]],Õppurid[],2),\"\")","v":"Meiliaadress"},{"$f":"IFERROR(VLOOKUP(Õppurinimekiri[[#This Row],[ÕPPURI NIMI]],Õppurid[],3),\"\")","v":"Kodutelefon"},{"$f":"IFERROR(VLOOKUP(Õppurinimekiri[[#This Row],[ÕPPURI NIMI]],Õppurid[],4),\"\")","v":"Mobiiltelefon"}]
[null,null,"Nimi 4",{"$f":"IFERROR(VLOOKUP(Õppurinimekiri[[#This Row],[ÕPPURI NIMI]],Õppurid[],2),\"\")","v":"Meiliaadress"},{"$f":"IFERROR(VLOOKUP(Õppurinimekiri[[#This Row],[ÕPPURI NIMI]],Õppurid[],3),\"\")","v":"Kodutelefon"},{"$f":"IFERROR(VLOOKUP(Õppurinimekiri[[#This Row],[ÕPPURI NIMI]],Õppurid[],4),\"\")","v":"Mobiiltelefon"}]

{"sheet":"Õppuri üksikasjad","index":2,"n_rows":13,"n_cols":4,"rows_kept":13,"merged":[[1,2,2,2],[1,3,1,4],[2,3,2,4],[3,2,3,3]]}
[]
[null,null,"Õppuri üksikasjad","AVA ÕPPURILOEND"]
[{"$nulls":3},"AVA KLASSINIMEKIRI"]
[null,null,"NÄPUNÄIDE. ÕPPURI ÜKSIKASJADE KUVAMISEKS VALIGE ÕPPURI NIMI LAHTRI D5 RIPPLOENDIST."]
[null,null,"ÕPPURI NIMI","Nimi 1"]
[null,null,"MEILIAADRESS",{"$f":"IFERROR(VLOOKUP(ÕppuriNimi,Õppurid[],2,FALSE),\"\")","v":"Meiliaadress"}]
[null,null,"KODUTELEFON",{"$f":"IFERROR(VLOOKUP(ÕppuriNimi,Õppurid[],3,FALSE),\"\")","v":"Kodutelefon"}]
[null,null,"MOBIILTELEFON",{"$f":"IFERROR(VLOOKUP(ÕppuriNimi,Õppurid[],4,FALSE),\"\")","v":"Mobiiltelefon"}]
[null,null,"SÜNNIKUUPÄEV",{"$f":"IFERROR(VLOOKUP(ÕppuriNimi,Õppurid[],5,FALSE),\"\")","v":"Kuupäev"}]
[null,null,"KONTAKTISIKUD HÄDAOLUKORRAS",{"$f":"IFERROR(VLOOKUP(ÕppuriNimi,Õppurid[],6,FALSE),\"\")","v":"Kontaktisik 1"}]
[null,null,"HÄDAABI TELEFONINUMBER",{"$f":"IFERROR(VLOOKUP(ÕppuriNimi,Õppurid[],7,FALSE),\"\")","v":"Hädaabi telefoninumber"}]
[null,null,"ARST",{"$f":"IFERROR(VLOOKUP(ÕppuriNimi,Õppurid[],8,FALSE),\"\")","v":"Arst 1"}]
[null,null,"ARSTI TELEFONINUMBER",{"$f":"IFERROR(VLOOKUP(ÕppuriNimi,Õppurid[],9,FALSE),\"\")","v":"Arsti telefoninumber"}]